fUST/lending_fUST_20240918
["ID","MTS","AMOUNT","RATE_DAILY","PERIOD"]
[338454412,1726649629000,890.11,0.00022999,60]
[338454413,1726649629609,852.67,0.00022999,60]
[338454414,1726649629771,1405.78,0.00022999,60]
[338454415,1726649630131,500.0,0.00022999,60]
[338454416,1726649630778,500.0,0.00022999,60]
[338454417,1726649631054,500.0,0.00022999,60]
[338454418,1726649631103,624.42,0.00022999,60]
[338454419,1726649631554,500.0,0.00022999,60]
[338454420,1726649631607,500.0,0.00022999,60]
[338454421,1726649632785,730.86,0.00022999,60]
[338454422,1726649633136,1436.52,0.00022999,60]
[338454423,1726649634030,500.0,0.00022999,60]
[338454424,1726649635155,2919.31,0.00022999,60]
[338454425,1726649635494,501.14,0.00022999,60]
[338454426,1726649635548,1790.88,0.00022999,60]
[338454427,1726649635617,1396.14,0.00022999,60]
[338454428,1726649635674,1168.26,0.00022999,60]
[338454429,1726649637074,1829.31,0.00022999,60]
[338454430,1726649637129,1254.71,0.00022999,60]
[338454431,1726649637462,500.0,0.00022999,60]
[338454432,1726649638070,2555.46,0.00022999,60]
[338454433,1726649638940,500.0,0.00022999,60]
[338454434,1726649638989,1448.95,0.00022999,60]
[338454435,1726649641044,1405.44,0.00022999,60]
[338454436,1726649641166,766.81,0.00022999,60]
[338454437,1726649641241,500.0,0.00022999,60]
[338454438,1726649641995,1255.0,0.00022999,60]
[338454439,1726649642504,500.0,0.00022999,60]
[338454440,1726649643718,678.44,0.00022999,60]
[338454441,1726649644030,769.39,0.00022999,60]
[338454443,1726649644256,500.0,0.00022999,60]
[338454444,1726649644485,500.0,0.00022999,60]
[338454445,1726649644595,1247.24,0.00022999,60]
[338454446,1726649644987,664.68,0.00022999,60]
[338454447,1726649645877,559.12,0.00022999,60]
[338454448,1726649646111,1953.48,0.00022999,60]
[338454449,1726649646954,500.0,0.00022999,60]
[338454450,1726649647341,500.0,0.00022999,60]
[338454451,1726649647680,500.0,0.00022999,60]
[338454452,1726649647822,2900.59,0.00022999,60]
[338454453,1726649647965,1048.53,0.00022999,60]
[338454454,1726649649811,397.502162,0.00022999,60]
[338454455,1726649649898,500.0,0.00022999,60]
[338454456,1726649651474,965.2,0.00022999,60]
[338454457,1726649652505,1622.36,0.00022999,60]
[338454458,1726649653182,500.0,0.00022999,60]
[338454459,1726649653397,500.0,0.00022999,60]
[338454460,1726649653532,1195.27,0.00022999,60]
[338454461,1726649654093,500.0,0.00022999,60]
[338454462,1726649654390,1727.35,0.00022999,60]
[338454463,1726649655313,1293.53,0.00022999,60]
[338454464,1726649655540,518.39138632,0.00022999,60]
[338454465,1726649656815,1920.04,0.00022999,60]
[338454466,1726649657139,500.0,0.00022999,60]
[338454467,1726649658697,500.0,0.00022999,60]
[338454468,1726649658762,500.0,0.00022999,60]
[338454469,1726649660094,407.44,0.00022999,60]
[338454470,1726649660179,2121.72,0.00022999,60]
[338454471,1726649661293,1277.47,0.00022999,60]
[338454472,1726649661495,1536.85,0.00022999,60]
[338454473,1726649661645,500.0,0.00022999,60]
[338454474,1726649661974,535.82,0.00022999,60]
[338454475,1726649662299,500.0,0.00022999,60]
[338454476,1726649662488,577.10550402,0.00022999,60]
[338454477,1726649662858,1826.37,0.00022999,60]
[338454478,1726649662926,500.0,0.00022999,60]
[338454479,1726649663221,500.0,0.00022999,60]
[338454480,1726649663283,500.0,0.00022999,60]
[338454481,1726649663451,2148.69,0.00022999,60]
[338454482,1726649665520,1267.15,0.00022999,60]
[338454483,1726649665630,513.5,0.00022999,60]
[338454484,1726649666201,500.0,0.00022999,60]
[338454485,1726649666679,4416.79,0.00022999,60]
[338454486,1726649666947,2635.75,0.00022999,60]
[338454487,1726649667689,813.66,0.00022999,60]
[338454488,1726649667746,500.0,0.00022999,60]
[338454489,1726649668400,1271.91,0.00022999,60]
[338454490,1726649668471,824.4,0.00022999,60]
[338454491,1726649668997,500.0,0.00022999,60]
[338454492,1726649669609,594.8670022,0.00022999,60]
[338454493,1726649670418,2288.95,0.00022999,60]
[338454494,1726649671708,912.2,0.00022999,60]
[338454495,1726649672437,7898.78,0.00022999,60]
[338454496,1726649672892,836.53,0.00022999,60]
[338454497,1726649673999,1614.56,0.00022999,60]
[338454498,1726649675376,500.0,0.00022999,60]
[338454499,1726649675426,605.78,0.00022999,60]
[338454500,1726649676055,500.0,0.00022999,60]
[338454501,1726649676823,1808.73,0.00022999,60]
[338454502,1726649677207,610.67861071,0.00022999,60]
[338454503,1726649678219,500.0,0.00022999,60]
[338454504,1726649679142,500.0,0.00022999,60]
[338454505,1726649679562,500.0,0.00022999,60]
[338454506,1726649679617,1004.85,0.00022999,60]
[338454507,1726649679667,500.0,0.00022999,60]
[338454509,1726649680019,1327.75,0.00022999,60]
[338454510,1726649680818,1346.88,0.00022999,60]
[338454511,1726649680877,500.0,0.00022999,60]
[338454512,1726649680935,571.56,0.00022999,60]
[338454513,1726649681416,512.92,0.00022999,60]
[338454514,1726649681565,1557.99,0.00022999,60]
[338454515,1726649682571,500.0,0.00022999,60]
[338454516,1726649682626,500.0,0.00022999,60]
[338454517,1726649682992,541.93,0.00022999,60]
[338454518,1726649683066,500.0,0.00022999,60]
[338454519,1726649683486,500.0,0.00022999,60]
[338454520,1726649683568,500.0,0.00022999,60]
[338454521,1726649686088,500.0,0.00022999,60]
[338454522,1726649687497,500.0,0.00022999,60]
[338454525,1726649689434,1136.68,0.00022999,60]
[338454526,1726649689856,2237.68,0.00022999,60]
[338454527,1726649689981,500.0,0.00022999,60]
[338454528,1726649690269,5098.04,0.00022999,60]
[338454529,1726649690409,500.0,0.00022999,60]
[338454530,1726649691375,500.0,0.00022999,60]
[338454531,1726649695714,544.22,0.00022999,60]
[338454532,1726649697297,500.0,0.00022999,60]
[338454533,1726649697715,1145.47,0.00022999,60]
[338454534,1726649697772,500.0,0.00022999,60]
[338454535,1726649697832,2797.68,0.00022999,60]
[338454536,1726649698117,2452.49,0.00022999,60]
[338454537,1726649698372,1765.85,0.00022999,60]
[338454538,1726649698423,697.8,0.00022999,60]
[338454539,1726649701074,500.0,0.00022999,60]
[338454540,1726649702697,817.25,0.00022999,60]
[338454541,1726649703184,500.0,0.00022999,60]
[338454542,1726649705356,500.0,0.00022999,60]
[338454543,1726649706903,500.0,0.00022999,60]
[338454544,1726649707994,1337.87,0.00022999,60]
[338454545,1726649711169,541.1340808,0.00022999,60]
[338454546,1726649711237,855.04,0.00022999,60]
[338454547,1726649711443,1127.95,0.00022999,60]
[338454548,1726649711598,500.0,0.00022999,60]
[338454549,1726649711887,500.0,0.00022999,60]
[338454550,1726649713221,500.0,0.00022999,60]
[338454551,1726649713532,790.22,0.00022999,60]
[338454552,1726649714340,500.0,0.00022999,60]
[338454553,1726649715103,849.05,0.00022999,60]
[338454554,1726649715604,1272.42,0.00022999,60]
[338454555,1726649723363,789.32,0.00022999,60]
[338454556,1726649727106,1290.76,0.00022999,60]
[338454557,1726649728061,594.24,0.00022999,60]
[338454558,1726649729239,500.0,0.00022999,60]
[338454559,1726649729330,500.0,0.00022999,60]
[338454560,1726649729619,2631.92,0.00022999,60]
[338454561,1726649732488,500.0,0.00022999,60]
[338454562,1726649732774,500.0,0.00022999,60]
[338454563,1726649733493,406.11547866,0.00022999,60]
[338454564,1726649733575,678.02,0.00022999,60]
[338454565,1726649734447,1554.76,0.00022999,60]
[338454566,1726649734859,1166.25,0.00022999,60]
[338454567,1726649735317,1235.86,0.00022999,60]
[338454568,1726649735603,735.97,0.00022999,60]
[338454569,1726649736220,500.0,0.00022999,60]
[338454570,1726649737711,500.0,0.00022999,60]
[338454571,1726649737869,500.0,0.00022999,60]
[338454572,1726649738404,1707.79,0.00022999,60]
[338454573,1726649738795,1091.56,0.00022999,60]
[338454574,1726649739073,1733.37,0.00022999,60]
[338454575,1726649739732,1097.74,0.00022999,60]
[338454576,1726649740286,859.04,0.00022999,60]
[338454577,1726649741616,500.0,0.00022999,60]
[338454578,1726649742480,500.0,0.00022999,60]
[338454579,1726649742656,1222.93,0.00022999,60]
[338454580,1726649742721,792.08,0.00022999,60]
[338454581,1726649742885,500.0,0.00022999,60]
[338454582,1726649742949,500.0,0.00022999,60]
[338454583,1726649744128,500.0,0.00022999,60]
[338454584,1726649744190,586.72,0.00022999,60]
[338454585,1726649746403,1692.27,0.00022999,60]
[338454586,1726649746752,500.0,0.00022999,60]
[338454587,1726649747803,500.0,0.00022999,60]
[338454588,1726649749389,500.0,0.00022999,60]
[338454589,1726649749930,1661.14,0.00022999,60]
[338454590,1726649750599,1405.77,0.00022999,60]
[338454591,1726649752227,500.0,0.00022999,60]
[338454592,1726649753057,748.61,0.00022999,60]
[338454593,1726649753122,2659.31,0.00022999,60]
[338454594,1726649753305,985.86,0.00022999,60]
[338454595,1726649753370,1188.35,0.00022999,60]
[338454596,1726649755245,727.96,0.00022999,60]
[338454597,1726649756681,500.0,0.00022999,60]
[338454598,1726649757139,500.0,0.00022999,60]
[338454599,1726649757203,1566.0,0.00022999,60]
[338454600,1726649757276,1261.56,0.00022999,60]
[338454601,1726649757539,500.0,0.00022999,60]
[338454602,1726649758509,500.0,0.00022999,60]
[338454603,1726649759493,500.0,0.00022999,60]
[338454604,1726649760477,504.45,0.00022999,60]
[338454605,1726649761127,500.0,0.00022999,60]
[338454606,1726649761690,1324.19,0.00022999,60]
[338454607,1726649761862,813.82,0.00022999,60]
[338454608,1726649763619,861.39,0.00022999,60]
[338454609,1726649763685,500.0,0.00022999,60]
[338454610,1726649764801,500.0,0.00022999,60]
[338454611,1726649764866,500.0,0.00022999,60]
[338454612,1726649765462,500.0,0.00022999,60]
[338454613,1726649766798,6580.94,0.00022999,60]
[338454614,1726649767248,500.0,0.00022999,60]
[338454615,1726649768046,5890.56,0.00022999,60]
[338454616,1726649768112,500.0,0.00022999,60]
[338454617,1726649768606,701.98,0.00022999,60]
[338454618,1726649768845,1951.73,0.00022999,60]
[338454619,1726649769558,500.0,0.00022999,60]
[338454620,1726649769788,500.0,0.00022999,60]
[338454621,1726649770430,500.0,0.00022999,60]
[338454622,1726649770535,500.0,0.00022999,60]
[338454623,1726649770600,1650.04,0.00022999,60]
[338454624,1726649770787,723.74,0.00022999,60]
[338454625,1726649770844,500.0,0.00022999,60]
[338454626,1726649770929,1115.32,0.00022999,60]
[338454627,1726649771218,1550.32,0.00022999,60]
[338454628,1726649771491,506.80769974,0.00022999,60]
[338454629,1726649772063,717.42,0.00022999,60]
[338454630,1726649772223,500.0,0.00022999,60]
[338454631,1726649772561,500.0,0.00022999,60]
[338454632,1726649773627,702.95,0.00022999,60]
[338454633,1726649773695,1621.76,0.00022999,60]
[338454634,1726649773753,500.0,0.00022999,60]
[338454635,1726649773825,825.5,0.00022999,60]
[338454636,1726649773957,839.75,0.00022999,60]
[338454637,1726649774233,1059.92,0.00022999,60]
[338454638,1726649774439,585.34213859,0.00022999,60]
[338454639,1726649777127,500.0,0.00022999,60]
[338454640,1726649777709,819.41,0.00022999,60]
[338454641,1726649777769,500.0,0.00022999,60]
[338454642,1726649779738,500.0,0.00022999,60]
[338454643,1726649779820,500.0,0.00022999,60]
[338454644,1726649780370,500.0,0.00022999,60]
[338454645,1726649780427,500.0,0.00022999,60]
[338454646,1726649780875,500.0,0.00022999,60]
[338454647,1726649781556,500.0,0.00022999,60]
[338454648,1726649781821,526.92,0.00022999,60]
[338454649,1726649782340,687.52,0.00022999,60]
[338454650,1726649782407,1397.79,0.00022999,60]
[338454651,1726649782843,500.0,0.00022999,60]
[338454652,1726649783447,839.62,0.00022999,60]
[338454653,1726649783714,500.0,0.00022999,60]
[338454654,1726649783774,166.22591053,0.00022999,60]
[338454655,1726649784369,1402.96,0.00022999,60]
[338454656,1726649785805,500.0,0.00022999,60]
[338454657,1726649787305,1591.93,0.00022999,60]
[338454658,1726649787498,1941.97,0.00022999,60]
[338454659,1726649788038,698.26,0.00022999,60]
[338454660,1726649788864,505.3144931,0.00022999,60]
[338454661,1726649788924,409.77535363,0.00022999,60]
[338454679,1726650631777,-186.5930791,0.00015899,2]
[338454680,1726650631787,-113.59607013,0.00016734,2]
[338454681,1726650631798,-186.40392987,0.00016734,2]
[338454682,1726650631808,-890.21650043,0.00016735,2]
[338454683,1726650631818,-475.41938185,0.00016735,2]
[338454684,1726650631829,-20600.58112,0.00016735,2]
[338454685,1726650632201,-426.98215575,0.00016735,2]
[338454686,1726650632212,-638.47376119,0.00016735,2]
[338454688,1726650632223,-461.47229372,0.00016735,2]
[338454712,1726650637750,-612.94621373,0.00016735,2]
[338454719,1726650637807,-352.26883856,0.00016735,2]
[338454933,1726650639833,-441.63973477,0.00016735,2]
[338454935,1726650639843,-1798.8024179,0.00016735,2]
[338454937,1726650639852,-4884.93750135,0.00018183,2]
[338454939,1726650639862,-420.0,0.00018408,2]
[338454941,1726650639871,-157.227667,0.00019178,2]
[338454943,1726650639881,-167.19749,0.00019178,2]
[338454945,1726650639890,-587.0,0.00020249,2]
[338454947,1726650639901,-150.369,0.00020584,2]
[338454949,1726650639911,-1216.0,0.00020584,2]
[338454951,1726650639920,-840.6699284,0.00020769,2]
[338454953,1726650639929,-2412.67366587,0.000209,2]
[338454955,1726650639939,-3000.0,0.00021,2]
[338454957,1726650639949,-476.03488793,0.00021009,2]
[338454959,1726650639958,-500.0,0.00021009,2]
[338454961,1726650639967,-500.0,0.00021009,2]
[338454963,1726650639977,-500.0,0.00021009,2]
[338454966,1726650639987,-649.54264286,0.00021009,2]
[338454968,1726650639997,-3000.0,0.0002101,2]
[338454970,1726650640007,-3000.0,0.0002102,2]
[338454972,1726650640017,-3000.0,0.0002103,2]
[338454974,1726650640026,-3000.0,0.0002104,2]
[338454976,1726650640035,-3000.0,0.0002105,2]
[338454978,1726650640045,-4215.130001,0.0002106,2]
[338454980,1726650640054,-153.0,0.0002144,2]
[338454982,1726650640064,-208.6901718,0.0002144,2]
[338454984,1726650640075,-2412.67366583,0.00021616,2]
[338454986,1726650640086,-631.03349642,0.00021807,2]
[338454988,1726650640096,-166.666666,0.00021918,2]
[338454990,1726650640106,-1000.0,0.00022,22]
[338454992,1726650640116,-153.0,0.00022178,2]
[338454995,1726650640127,-161.3229466,0.00022262,2]
[338454997,1726650640142,-208.6901718,0.00022262,2]
[338454999,1726650640152,-233.0,0.00022273,2]
[338455001,1726650640162,-2412.67366583,0.00022332,2]
[338455003,1726650640174,-179.98132823,0.00022366,2]
[338455006,1726650640186,-166.666666,0.00022431,2]
[338455008,1726650640197,-5000.0,0.00022525,2]
[338455010,1726650640208,-5000.0,0.00022525,2]
[338455012,1726650640219,-1524.45898108,0.0002281,2]
[338455014,1726650640229,-1000.0,0.0002282,2]
[338455016,1726650640241,-1524.45898106,0.00022832,2]
[338455018,1726650640251,-1230.06580488,0.0002284,2]
[338455019,1726650640260,-1524.45898106,0.00022855,2]
[338455020,1726650640270,-1524.45898106,0.00022877,2]
[338455021,1726650640279,-1524.45898106,0.00022899,2]
[338455022,1726650640291,-500.0,0.00022909,2]
[338455023,1726650640302,-331.82633567,0.00022909,2]
[338455024,1726650640314,-317.29079112,0.00022909,2]
[338455025,1726650640327,-461.36522932,0.00022909,2]
[338455026,1726650640338,-500.0,0.00022909,2]
[338455027,1726650640349,-500.0,0.00022909,2]
[338455028,1726650640360,-500.0,0.00022909,2]
[338455029,1726650640371,-500.0,0.00022909,2]
[338455030,1726650640381,-500.0,0.00022909,2]
[338455031,1726650640390,-500.0,0.00022909,2]
[338455032,1726650640402,-449.02431572,0.00022909,2]
[338455033,1726650640412,-500.0,0.00022909,2]
[338455034,1726650640423,-500.0,0.00022909,2]
[338455035,1726650640434,-160984.92304077,0.0002291,3]
[338455036,1726650640448,-26805.42908185,0.0002291,3]
[338455052,1726650643060,-17943.595548,0.0002291,3]
[338455243,1726651832174,-300.0,0.00016734,2]
[338455244,1726651832186,-300.0,0.00016734,2]
[338455245,1726651832197,-2820.61888,0.00016735,2]
[338455246,1726651832234,-2423.60357192,0.00016735,2]
[338455294,1726651841545,-19655.77754808,0.00016735,2]
[338455295,1726651841556,-193.8677346,0.00016861,2]
[338455296,1726651841567,-420.0,0.00018283,2]
[338455297,1726651841579,-8422.29375357,0.00019,10]
[338455298,1726651841589,-177.3886046,0.00019178,2]
[338455299,1726651841599,-157.227667,0.00019178,2]
[338455300,1726651841608,-587.0,0.00019974,2]
[338455301,1726651841618,-150.0,0.00020955,2]
[338455302,1726651841628,-524.0,0.00020955,2]
[338455303,1726651841640,-1216.0,0.00020955,2]
[338455304,1726651841650,-3700.0,0.00021,2]
[338455305,1726651841661,-150.0,0.00021,2]
[338455306,1726651841671,-823.0,0.00021822,2]
[338455307,1726651841681,-166.666666,0.00021918,2]
[338455308,1726651841690,-15113.74767094,0.00022,10]
[338455309,1726651841700,-166.666666,0.00022431,2]
[338455310,1726651841710,-5000.0,0.00022689,2]
[338455311,1726651841720,-5000.0,0.00022689,2]
[338455312,1726651841730,-1000.0,0.0002279,2]
[338455313,1726651841739,-153.1287431,0.00022795,2]
[338455314,1726651841749,-154.4189276,0.00022795,2]
[338455315,1726651841758,-153.0,0.00022795,2]
[338455316,1726651841768,-153.0,0.00022795,2]
[338455317,1726651841778,-153.0,0.00022795,2]
[338455318,1726651841787,-1524.45898108,0.000228,2]
[338455319,1726651841797,-1000.0,0.000228,2]
[338455320,1726651841807,-1000.0,0.000228,7]
[338455321,1726651841816,-1524.45898106,0.0002281,2]
[338455322,1726651841826,-1230.06580488,0.00022819,2]
[338455323,1726651841838,-1524.45898106,0.0002282,2]
[338455324,1726651841849,-1524.45898106,0.0002283,2]
[338455325,1726651841858,-1524.45898106,0.0002283,2]
[338455326,1726651841868,-605.48,0.00022861,3]
[338455327,1726651841878,-605.48,0.00022861,3]
[338455328,1726651841888,-605.48,0.00022861,3]
[338455329,1726651841900,-605.48,0.00022861,3]
[338455330,1726651841911,-302.71,0.00022861,3]
[338455331,1726651841920,-151.36,0.00022861,3]
[338455332,1726651841931,-454.08,0.00022861,3]
[338455333,1726651841940,-605.48,0.0002287,3]
[338455334,1726651841950,-605.48,0.0002287,3]
[338455335,1726651841960,-1465.12116756,0.0002287,5]
[338455336,1726651841970,-106648.09456355,0.00022871,3]
[338455350,1726651843055,-17943.595548,0.00022871,3]
[338455595,1726653032382,-300.0,0.00016734,2]
[338455596,1726653032392,-356.90878816,0.00016735,2]
[338455615,1726653038208,-1185.61553054,0.00016735,2]
[338455616,1726653038219,-1906.67789196,0.00016735,2]
[338455617,1726653038233,-1738.76796921,0.00016735,2]
[338455618,1726653040683,-51369.48382783,0.00016735,2]
[338455619,1726653040694,-2111.08945761,0.00019078,2]
[338455620,1726653040706,-165.773229,0.00019178,2]
[338455621,1726653040715,-2111.0894576,0.00020094,2]
[338455622,1726653040727,-218.56588726,0.00020308,2]
[338455623,1726653040739,-300.0,0.00020408,2]
[338455624,1726653040748,-500.0,0.0002051,30]
[338455625,1726653040759,-500.0,0.0002051,30]
[338455626,1726653040769,-500.0,0.0002051,30]
[338455627,1726653040779,-500.0,0.0002051,30]
[338455628,1726653040790,-740.38181973,0.0002051,30]
[338455629,1726653040800,-500.0,0.0002051,30]
[338455630,1726653040811,-500.0,0.0002051,30]
[338455631,1726653040823,-500.0,0.0002051,30]
[338455632,1726653040834,-500.0,0.0002051,30]
[338455633,1726653040846,-500.0,0.0002051,30]
[338455634,1726653040859,-500.0,0.0002051,30]
[338455635,1726653040879,-500.0,0.0002051,30]
[338455636,1726653040890,-500.0,0.0002051,30]
[338455637,1726653040902,-500.0,0.0002051,30]
[338455638,1726653040913,-766.77639227,0.0002051,30]
[338455639,1726653040923,-512.30283337,0.0002051,30]
[338455640,1726653040935,-513.87183106,0.0002051,30]
[338455641,1726653040945,-2115.9713893,0.0002101,2]
[338455642,1726653040956,-524.0,0.00021293,2]
[338455643,1726653040967,-150.0,0.00021293,2]
[338455644,1726653040977,-1216.0,0.00021293,2]
[338455645,1726653040991,-166.666666,0.00021918,2]
[338455646,1726653041001,-158.0,0.00022,2]
[338455647,1726653041010,-420.0,0.00022213,2]
[338455648,1726653041020,-166.666666,0.00022431,2]
[338455649,1726653041030,-5000.0,0.00022689,2]
[338455650,1726653041039,-5000.0,0.00022689,2]
[338455651,1726653041049,-1000.0,0.00022761,2]
[338455652,1726653041058,-1230.06580488,0.0002284,2]
[338455653,1726653041068,-681.17,0.0002285,3]
[338455654,1726653041078,-866.1,0.0002285,3]
[338455655,1726653041088,-866.1,0.0002285,3]
[338455656,1726653041098,-1465.12116756,0.0002286,5]
[338455657,1726653041107,-166203.81599985,0.0002286,3]
[338455661,1726653043276,-2111.0894576,0.00021109,2]
[338455662,1726653043286,-15832.5060904,0.0002286,3]
[338455684,1726653882877,1506.26,0.00014,2]
[338455685,1726653891827,1506.26,0.00014,2]
[338455903,1726654125455,1122.52,0.00010959,2]
[338455904,1726654135945,935.43,0.00010959,2]
[338455905,1726654146455,779.52,0.00010959,2]
[338455906,1726654157174,779.52,0.00010959,2]
[338455920,1726654167681,519.68,0.00010959,2]
[338455921,1726654178396,433.07,0.00010959,2]
[338455925,1726654188640,360.89,0.00010959,2]
[338455926,1726654199188,300.74,0.00010959,2]
[338455927,1726654209703,250.62,0.00010959,2]
[338455928,1726654220190,208.85,0.00010959,2]
[338455929,1726654230712,174.04,0.00010959,2]
[338455983,1726654232630,-300.0,0.00015598,2]
[338455985,1726654232640,-300.0,0.00015598,2]
[338455986,1726654232649,-10296.51104924,0.00015599,2]
[338455987,1726654232659,-3000.000001,0.00015699,2]
[338455988,1726654232673,-186.6833836,0.00015899,2]
[338455989,1726654232684,-4289.7848907,0.00016635,2]
[338455991,1726654232694,-244.003274,0.00016735,2]
[338455992,1726654232704,-201.900144,0.00016735,2]
[338455993,1726654232714,-8070.79007767,0.00016735,2]
[338456018,1726654238528,-198.67281259,0.00016734,2]
[338456019,1726654238537,-500.0,0.00016734,2]
[338456020,1726654238547,-500.0,0.00016734,2]
[338456021,1726654238556,-180.5083137,0.00016734,2]
[338456022,1726654238565,-500.0,0.00016734,2]
[338456023,1726654238575,-500.0,0.00016734,2]
[338456024,1726654238584,-500.0,0.00016734,2]
[338456025,1726654238592,-500.0,0.00016734,2]
[338456026,1726654238602,-500.0,0.00016734,2]
[338456027,1726654238611,-500.0,0.00016734,2]
[338456028,1726654238620,-500.0,0.00016734,2]
[338456029,1726654238629,-500.0,0.00016734,2]
[338456030,1726654238639,-500.0,0.00016734,2]
[338456031,1726654238648,-500.0,0.00016734,2]
[338456032,1726654238658,-500.0,0.00016734,2]
[338456033,1726654238670,-489.27789666,0.00016734,2]
[338456034,1726654238679,-500.0,0.00016734,2]
[338456035,1726654238688,-500.0,0.00016734,2]
[338456036,1726654238696,-500.0,0.00016734,2]
[338456037,1726654238706,-500.0,0.00016734,2]
[338456038,1726654238716,-500.0,0.00016734,2]
[338456039,1726654238725,-500.0,0.00016734,2]
[338456041,1726654238734,-500.0,0.00016734,2]
[338456043,1726654238744,-500.0,0.00016734,2]
[338456044,1726654238755,-500.0,0.00016734,2]
[338456045,1726654238766,-500.0,0.00016734,2]
[338456046,1726654238775,-500.0,0.00016734,2]
[338456048,1726654238785,-500.0,0.00016734,2]
[338456050,1726654238794,-500.0,0.00016734,2]
[338456051,1726654238803,-500.0,0.00016734,2]
[338456052,1726654238813,-329.09701257,0.00016734,2]
[338456053,1726654238823,-500.0,0.00016734,2]
[338456054,1726654238832,-500.0,0.00016734,2]
[338456055,1726654238841,-500.0,0.00016734,2]
[338456056,1726654238850,-122.97146448,0.00016734,2]
[338456057,1726654238862,-377.02853552,0.00016734,2]
[338456058,1726654238871,-500.0,0.00016734,2]
[338456059,1726654238880,-500.0,0.00016734,2]
[338456060,1726654238890,-500.0,0.00016734,2]
[338456061,1726654238899,-500.0,0.00016734,2]
[338456062,1726654238909,-500.0,0.00016734,2]
[338456063,1726654238918,-500.0,0.00016734,2]
[338456064,1726654238927,-500.0,0.00016734,2]
[338456065,1726654238936,-500.0,0.00016734,2]
[338456066,1726654238945,-500.0,0.00016734,2]
[338456067,1726654238955,-500.0,0.00016734,2]
[338456068,1726654238964,-500.0,0.00016734,2]
[338456069,1726654238974,-500.0,0.00016734,2]
[338456070,1726654238984,-500.0,0.00016734,2]
[338456071,1726654238993,-500.0,0.00016734,2]
[338456072,1726654239002,-500.0,0.00016734,2]
[338456073,1726654239012,-500.0,0.00016734,2]
[338456074,1726654239021,-500.0,0.00016734,2]
[338456075,1726654239030,-500.0,0.00016734,2]
[338456076,1726654239039,-500.0,0.00016734,2]
[338456077,1726654239049,-500.0,0.00016734,2]
[338456078,1726654239058,-500.0,0.00016734,2]
[338456079,1726654239067,-500.0,0.00016734,2]
[338456080,1726654239077,-500.0,0.00016734,2]
[338456081,1726654239087,-500.0,0.00016734,2]
[338456082,1726654239096,-500.0,0.00016734,2]
[338456083,1726654239105,-500.0,0.00016734,2]
[338456084,1726654239115,-16829.20992233,0.00016735,2]
[338456085,1726654239125,-3000.0,0.00016735,2]
[338456086,1726654239135,-2128.481326,0.00016735,2]